fUSD/lending_fUSD_20240517
["ID","MTS","AMOUNT","RATE_DAILY","PERIOD"]
[327299696,1715974238866,-183.25604584,0.00012772,2]
[327299699,1715974238876,-585.70848,0.00012772,2]
[327299702,1715974238885,-166.902638,0.00012772,2]
[327299705,1715974238897,-324.000833,0.00012772,2]
[327299708,1715974238907,-4895.0,0.000128,2]
[327299711,1715974238916,-1000.0,0.000128,2]
[327299714,1715974238926,-1659.99434364,0.000128,4]
[327299717,1715974238938,-2040.00565636,0.000128,4]
[327299720,1715974238947,-2500.0,0.000128,2]
[327299723,1715974238957,-7401.01985224,0.00012815,2]
[327299726,1715974238968,-98.98014776,0.00012815,2]
[327299729,1715974238978,-4986.24585127,0.0001287,2]
[327299733,1715974238990,-6627.12529485,0.0001287,2]
[327299736,1715974239002,-150.0,0.00012877,2]
[327299739,1715974239012,-263.23902765,0.00012885,2]
[327299743,1715974239024,-236.76097235,0.00012885,2]
[327299746,1715974239035,-500.0,0.00012893,2]
[327299748,1715974239045,-1000.0,0.00012895,2]
[327299750,1715974239055,-200.0,0.00012895,2]
[327299752,1715974239065,-200.0,0.00012896,2]
[327299754,1715974239078,-1000.0,0.00012896,2]
[327299757,1715974239089,-177.65462765,0.00012896,2]
[327299760,1715974239101,-322.34537235,0.00012896,2]
[327299763,1715974239110,-121.77182267,0.00012898,2]
[327299767,1715974239124,-187.68067233,0.00012898,2]
[327299770,1715974239133,-155.74380217,0.000129,2]
[327299773,1715974239144,-3982.18098832,0.000129,2]
[327299776,1715974239154,-700.0,0.000129,4]
[327299779,1715974239164,-172.42754453,0.000129,2]
[327299782,1715974239174,-1000.0,0.000129,2]
[327299785,1715974239185,-500.0,0.00012902,2]
[327299788,1715974239195,-500.0,0.00012904,2]
[327299791,1715974239206,-500.0,0.00012911,2]
[327299794,1715974239216,-630.06,0.00012914,2]
[327299797,1715974239226,-500.0,0.00012914,2]
[327299800,1715974239238,-500.0,0.00012914,2]
[327299803,1715974239248,-500.0,0.00012914,2]
[327299806,1715974239259,-500.0,0.00012914,2]
[327299809,1715974239269,-500.0,0.00012914,2]
[327299812,1715974239280,-182.88075021,0.00012914,2]
[327299815,1715974239290,-500.0,0.00012914,2]
[327299818,1715974239300,-428.99016571,0.00012914,2]
[327299821,1715974239310,-500.0,0.00012914,2]
[327299824,1715974239320,-500.0,0.00012914,2]
[327299827,1715974239330,-500.0,0.00012914,2]
[327299830,1715974239340,-500.0,0.00012914,2]
[327299833,1715974239350,-500.0,0.00012914,2]
[327299836,1715974239360,-500.0,0.00012914,2]
[327299839,1715974239372,-500.0,0.00012914,2]
[327299842,1715974239382,-500.0,0.00012914,2]
[327299845,1715974239391,-302.95044686,0.00012914,2]
[327299848,1715974239401,-500.0,0.00012914,2]
[327299851,1715974239411,-500.0,0.00012914,2]
[327299853,1715974239421,-205.40742611,0.00012914,2]
[327299857,1715974239431,-1225.0,0.00012915,2]
[327299860,1715974239441,-468.494,0.00012915,2]
[327299863,1715974239452,-1262.0,0.00012915,2]
[327299866,1715974239462,-308.757,0.00012915,2]
[327299869,1715974239472,-612.0,0.00012915,2]
[327299870,1715974239481,-439.0,0.00012915,2]
[327299874,1715974239491,-444.0,0.00012915,2]
[327299876,1715974239500,-809.0,0.00012915,2]
[327299880,1715974239511,-1647.0,0.00012915,2]
[327299883,1715974239521,-2393.0,0.00012915,2]
[327299886,1715974239531,-1137.0,0.00012915,2]
[327299889,1715974239540,-3159.0,0.00012915,2]
[327299892,1715974239550,-215.0,0.00012915,2]
[327299894,1715974239559,-585.477,0.00012915,2]
[327299896,1715974239569,-5753.0,0.00012915,2]
[327299898,1715974239579,-5914.0,0.00012915,2]
[327299901,1715974239588,-37858.0,0.00012915,2]
[327299904,1715974239598,-289.0,0.00012915,2]
[327299907,1715974239607,-2159.0,0.00012915,2]
[327299910,1715974239617,-1399.0,0.00012915,2]
[327299911,1715974239627,-324.25,0.00012916,2]
[327299913,1715974239638,-500.0,0.0001292,2]
[327299915,1715974239647,-588.72607669,0.00012925,2]
[327299917,1715974239657,-500.0,0.00012926,2]
[327299919,1715974239668,-500.0,0.00012926,2]
[327299921,1715974239678,-500.0,0.00012926,2]
[327299923,1715974239688,-282.06,0.00012926,2]
[327299925,1715974239698,-505.64656316,0.00012926,2]
[327299927,1715974239709,-605.54,0.00012926,2]
[327299929,1715974239718,-500.0,0.00012926,2]
[327299931,1715974239728,-629.63,0.00012926,2]
[327299933,1715974239738,-500.0,0.00012926,2]
[327299935,1715974239747,-500.0,0.00012926,2]
[327299937,1715974239757,-500.0,0.00012926,2]
[327299940,1715974239768,-415.80535312,0.00012926,2]
[327299942,1715974239777,-500.0,0.00012926,2]
[327299944,1715974239788,-500.0,0.00012926,2]
[327299946,1715974239798,-500.0,0.00012926,2]
[327299948,1715974239808,-500.0,0.00012926,2]
[327299950,1715974239818,-500.0,0.00012926,2]
[327299952,1715974239828,-500.0,0.00012926,2]
[327299954,1715974239841,-564.1495804,0.00012926,2]
[327299956,1715974239851,-500.0,0.00012926,2]
[327299958,1715974239860,-500.0,0.00012926,2]
[327299960,1715974239870,-500.0,0.00012926,2]
[327299962,1715974239880,-189.51787,0.00012926,2]
[327299964,1715974239890,-155.6198,0.00012926,2]
[327299966,1715974239900,-196.60817,0.00012926,2]
[327299968,1715974239911,-3278.717563,0.00012926,2]
[327299969,1715974239921,-1087.966087,0.00012926,2]
[327299972,1715974239932,-585.70848,0.00012926,2]
[327299974,1715974239942,-166.902638,0.00012926,2]
[327299976,1715974239952,-324.000833,0.00012926,2]
[327299978,1715974239962,-500.0,0.00012929,2]
[327299980,1715974239973,-500.0,0.00012937,2]
[327299982,1715974239982,-1000.0,0.00012946,2]
[327299984,1715974239994,-500.0,0.00012946,2]
[327299986,1715974240005,-500.0,0.00012955,2]
[327299988,1715974240014,-500.0,0.00012964,2]
[327299990,1715974240024,-500.0,0.00012973,2]
[327299992,1715974240035,-500.0,0.00012981,2]
[327299994,1715974240045,-324.25,0.00012987,2]
[327299996,1715974240054,-324.25,0.0001299,2]
[327299998,1715974240064,-324.25,0.0001299,2]
[327300000,1715974240074,-153.76,0.0001299,2]
[327300002,1715974240086,-153.76,0.0001299,2]
[327300004,1715974240098,-153.76,0.0001299,2]
[327300006,1715974240108,-153.76,0.0001299,2]
[327300008,1715974240120,-153.76,0.0001299,2]
[327300010,1715974240130,-153.76,0.0001299,2]
[327300012,1715974240140,-153.76,0.0001299,2]
[327300014,1715974240150,-153.76,0.0001299,2]
[327300016,1715974240159,-153.76,0.0001299,2]
[327300018,1715974240169,-153.76,0.0001299,2]
[327300020,1715974240180,-153.76,0.0001299,2]
[327300022,1715974240190,-153.76,0.0001299,2]
[327300024,1715974240201,-153.76,0.0001299,2]
[327300026,1715974240211,-153.76,0.0001299,2]
[327300028,1715974240221,-153.76,0.0001299,2]
[327300030,1715974240230,-153.76,0.0001299,2]
[327300032,1715974240241,-153.76,0.0001299,2]
[327300034,1715974240250,-153.76,0.0001299,2]
[327300036,1715974240261,-153.76,0.0001299,2]
[327300038,1715974240271,-324.25,0.0001299,2]
[327300040,1715974240282,-324.25,0.0001299,2]
[327300042,1715974240292,-324.25,0.0001299,2]
[327300044,1715974240302,-324.25,0.0001299,2]
[327300046,1715974240312,-324.25,0.0001299,2]
[327300048,1715974240322,-324.25,0.0001299,2]
[327300050,1715974240332,-500.0,0.0001299,2]
[327300052,1715974240343,-57846.20167096,0.00012995,2]
[327300054,1715974240354,-301.40994899,0.00012995,2]
[327300056,1715974240364,-520.76,0.00012995,2]
[327300058,1715974240375,-516.01771826,0.00012995,2]
[327300060,1715974240384,-537.34191286,0.00012995,2]
[327300062,1715974240394,-504.45538581,0.00012995,2]
[327300064,1715974240404,-500.0,0.00012995,2]
[327300066,1715974240414,-500.0,0.00012995,2]
[327300068,1715974240425,-500.0,0.00012995,2]
[327300071,1715974240436,-500.0,0.00012995,2]
[327300073,1715974240446,-500.0,0.00012995,2]
[327300075,1715974240457,-500.0,0.00012995,2]
[327300077,1715974240467,-455.9612119,0.00012995,2]
[327300079,1715974240478,-500.0,0.00012995,2]
[327300081,1715974240488,-3027.410232,0.00012995,2]
[327300083,1715974240498,-500.0,0.00012995,2]
[327300085,1715974240508,-17057.1743389,0.00012995,2]
[327300087,1715974240518,-11692.2536394,0.00012995,2]
[327300089,1715974240528,-500.0,0.00012995,2]
[327300091,1715974240538,-37823.5415076,0.00012995,2]
[327300093,1715974240548,-500.0,0.00012995,2]
[327300095,1715974240558,-315.57383293,0.00012995,2]
[327300097,1715974240568,-500.0,0.00012995,2]
[327300099,1715974240578,-500.0,0.00012995,2]
[327300100,1715974240587,-500.0,0.00012995,2]
[327300103,1715974240597,-12882.47347721,0.00012995,2]
[327300105,1715974240612,-2662.52330469,0.00012995,2]
[327300107,1715974240622,-500.0,0.00012995,2]
[327300109,1715974240632,-500.0,0.00012995,2]
[327300111,1715974240642,-162.46980569,0.00012996,2]
[327300113,1715974240652,-500.0,0.00012996,2]
[327300115,1715974240662,-500.0,0.00012996,2]
[327300117,1715974240672,-95.40868198,0.00012996,2]
[327300119,1715974240684,-404.59131802,0.00012996,2]
[327300122,1715974240695,-500.0,0.00012996,2]
[327300125,1715974240705,-500.0,0.00012996,2]
[327300127,1715974240715,-500.0,0.00012996,2]
[327300130,1715974240725,-500.0,0.00012996,2]
[327300132,1715974240735,-500.0,0.00012996,2]
[327300135,1715974240745,-500.0,0.00012996,2]
[327300138,1715974240754,-3809.90905154,0.00012997,2]
[327300142,1715974240767,-5115.537408,0.00012997,2]
[327300167,1715974240934,-2136.55354046,0.00012997,2]
[327300168,1715974240986,-528.6242532,0.00012997,2]
[327300169,1715974241000,-436.39738179,0.00012997,2]
[327300170,1715974241010,-782.26025222,0.00012997,2]
[327300172,1715974241019,-155.06471558,0.00012997,2]
[327300174,1715974241030,-246.7600202,0.00012997,2]
[327300176,1715974241041,-5000.0,0.00012997,2]
[327300178,1715974241051,-215.26965455,0.00012997,2]
[327300181,1715974241062,-578.941023,0.00012997,2]
[327300183,1715974241075,-1127.09971412,0.00012997,2]
[327300185,1715974241087,-5111.28122006,0.00012997,2]
[327300187,1715974241099,-5614.00016341,0.00012997,2]
[327300189,1715974241108,-449.53723821,0.00012997,2]
[327300191,1715974241118,-408.98464469,0.00012998,2]
[327300193,1715974241128,-1025.34346523,0.00012998,2]
[327300195,1715974241137,-238.14069985,0.00012998,2]
[327300197,1715974241147,-405.3612315,0.00012998,2]
[327300200,1715974241157,-1000.0,0.00012998,2]
[327300202,1715974241167,-4271.31667855,0.00012998,2]
[327300204,1715974241176,-410.03425881,0.00012998,2]
[327300205,1715974241186,-155.1587554,0.00012998,2]
[327300207,1715974241195,-2191.94961589,0.00012998,2]
[327300224,1715974241398,-1979.38570311,0.00012998,2]
[327300225,1715974241408,-1476.65316719,0.00012998,2]
[327300226,1715974241418,-185.14067272,0.00012998,2]
[327300227,1715974241427,-500.0,0.00012998,2]
[327300228,1715974241437,-500.0,0.00012998,2]
[327300229,1715974241447,-167.3941688,0.00012998,2]
[327300230,1715974241456,-500.0,0.00012998,2]
[327300231,1715974241465,-500.0,0.00012998,2]
[327300232,1715974241474,-500.0,0.00012998,2]
[327300233,1715974241484,-500.0,0.00012998,2]
[327300234,1715974241493,-1488.99984603,0.00012999,2]
[327300236,1715974241503,-10934.65564137,0.00012999,2]
[327300238,1715974241511,-5270.34697774,0.00012999,2]
[327300239,1715974241523,-775.44461026,0.00012999,2]
[327300240,1715974241535,-500.0,0.00012999,2]
[327300241,1715974241546,-5243.23166968,0.00012999,2]
[327300242,1715974241558,-5638.59697852,0.00012999,2]
[327300243,1715974241621,-2178.60292258,0.00012999,2]
[327300244,1715974241631,-1179.04202362,0.00012999,2]
[327300245,1715974241640,-550.74556633,0.00012999,2]
[327300246,1715974241649,-500.0,0.00012999,2]
[327300247,1715974241659,-500.0,0.00012999,2]
[327300248,1715974241668,-567.21,0.00012999,2]
[327300249,1715974241678,-500.0,0.00012999,2]
[327300250,1715974241687,-16000.0,0.00012999,2]
[327300251,1715974241696,-500.0,0.00012999,2]
[327300252,1715974241706,-500.0,0.00012999,2]
[327300253,1715974241715,-500.0,0.00012999,2]
[327300254,1715974241725,-500.0,0.00012999,2]
[327300255,1715974241734,-500.0,0.00012999,2]
[327300256,1715974241743,-500.0,0.00012999,2]
[327300257,1715974241754,-500.0,0.00012999,2]
[327300258,1715974241764,-262.7,0.00012999,2]
[327300259,1715974241773,-460.58,0.00012999,2]
[327300260,1715974241783,-395.3,0.00012999,2]
[327300261,1715974241793,-500.0,0.00012999,2]
[327300262,1715974241802,-500.0,0.00012999,2]
[327300263,1715974241811,-500.0,0.00012999,2]
[327300264,1715974241821,-500.0,0.00012999,2]
[327300265,1715974241831,-500.0,0.00012999,2]
[327300266,1715974241841,-500.0,0.00012999,2]
[327300267,1715974241850,-396.22423783,0.00012999,2]
[327300268,1715974241859,-500.0,0.00012999,2]
[327300269,1715974241869,-414.06,0.00012999,2]
[327300270,1715974241878,-500.0,0.00012999,2]
[327300271,1715974241887,-500.0,0.00012999,2]
[327300272,1715974241897,-278.68,0.00012999,2]
[327300273,1715974241907,-585.31,0.00012999,2]
[327300274,1715974241916,-500.0,0.00012999,2]
[327300275,1715974241926,-299.45,0.00012999,2]
[327300276,1715974241935,-500.0,0.00012999,2]
[327300277,1715974241944,-322.08928543,0.00012999,2]
[327300278,1715974241954,-195.22717998,0.00012999,2]
[327300279,1715974241964,-278.34,0.00012999,2]
[327300280,1715974241974,-500.0,0.00012999,2]
[327300281,1715974241984,-500.0,0.00012999,2]
[327300282,1715974241996,-500.0,0.00012999,2]
[327300283,1715974242006,-500.0,0.00012999,2]
[327300284,1715974242016,-500.0,0.00012999,2]
[327300285,1715974242025,-368.5004328,0.00012999,2]
[327300286,1715974242035,-500.0,0.00012999,2]
[327300287,1715974242045,-500.0,0.00012999,2]
[327300288,1715974242054,-500.0,0.00012999,2]
[327300289,1715974242064,-242.05,0.00012999,2]
[327300290,1715974242075,-278.6,0.00012999,2]
[327300291,1715974242086,-500.0,0.00012999,2]
[327300292,1715974242097,-500.0,0.00012999,2]
[327300293,1715974242106,-464.44,0.00012999,2]
[327300294,1715974242116,-500.0,0.00012999,2]
[327300295,1715974242126,-424.59,0.00012999,2]
[327300296,1715974242135,-221.87,0.00012999,2]
[327300297,1715974242145,-500.0,0.00012999,2]
[327300298,1715974242155,-500.0,0.00012999,2]
[327300299,1715974242164,-500.0,0.00012999,2]
[327300300,1715974242174,-500.0,0.00012999,2]
[327300301,1715974242183,-500.0,0.00012999,2]
[327300302,1715974242193,-282.21,0.00012999,2]
[327300303,1715974242203,-502.0,0.00013,2]
[327300304,1715974242212,-413385.09870679,0.00013,2]
[327300305,1715974242222,-21721.98017158,0.00013,2]
[327300306,1715974242231,-500.0,0.00013,2]
[327300307,1715974242240,-500.0,0.00013,2]
[327300308,1715974242251,-500.0,0.00013,2]
[327300309,1715974242260,-500.0,0.00013,2]
[327300310,1715974242270,-500.0,0.00013,2]
[327300311,1715974242279,-500.0,0.00013,2]
[327300312,1715974242289,-500.0,0.00013,2]
[327300313,1715974242298,-500.0,0.00013,2]
[327300314,1715974242307,-500.0,0.00013,2]
[327300315,1715974242317,-500.0,0.00013,2]
[327300316,1715974242326,-500.0,0.00013,2]
[327300317,1715974242335,-500.0,0.00013,2]
[327300318,1715974242345,-500.0,0.00013,2]
[327300319,1715974242354,-717.0,0.00013,2]
[327300320,1715974242363,-560437.97300564,0.00013,2]
[327300321,1715974242374,-596809.13698458,0.00013,2]
[327300322,1715974242383,-10000.0,0.00013,2]
[327300323,1715974242392,-2500.0,0.00013,2]
[327300324,1715974242402,-808730.24528244,0.00013,2]
[327300325,1715974242417,-910455.45186616,0.00013,2]
[327300326,1715974242430,-6588.8235585,0.00013,2]
[327300327,1715974242463,-785.92464769,0.00013,2]
[327300328,1715974242474,-669.42707453,0.00013,2]
[327300329,1715974242486,-790.78038868,0.00013,2]
[327300330,1715974242497,-1729.55783652,0.00013,2]
[327300331,1715974242509,-580.87808828,0.00013,2]
[327300332,1715974242520,-9829.1716183,0.00013,2]
[327300333,1715974242531,-6185.98287592,0.00013,2]
[327300334,1715974242542,-1097.789556,0.00013,2]
[327300335,1715974242553,-655.82000289,0.00013,2]
[327300336,1715974242569,-830.53999099,0.00013,2]
[327300337,1715974242580,-774.91831638,0.00013,2]
[327300338,1715974242591,-9697.534,0.00013,2]
[327300339,1715974242602,-1654.53650654,0.00013,2]
[327300340,1715974242613,-1647.53468192,0.00013,2]
[327300341,1715974242625,-14263.00662656,0.00013,2]
[327300342,1715974242637,-485290.14838107,0.00013,2]
[327300343,1715974242648,-157949.38439648,0.00013,2]
[327300344,1715974242661,-1151.7587563,0.00013,2]
[327300345,1715974242672,-867.8702897,0.00013,2]
[327300346,1715974242683,-39813.36937123,0.00013,2]
[327300347,1715974242799,-2007.852,0.00013,2]
[327300348,1715974242810,-656.29010794,0.00013,2]
[327300349,1715974242820,-2230.79767685,0.00013,2]
[327300350,1715974242832,-8042.04038,0.00013,2]
[327300351,1715974242843,-3245.01667912,0.00013,2]
[327300352,1715974242854,-185293.51074515,0.00013,2]
[327300353,1715974242873,-2105.49406735,0.00013,2]
[327300354,1715974242885,-857.69234347,0.00013,2]
[327300355,1715974242896,-813.78799327,0.00013,2]
[327300356,1715974242926,-6865.65628948,0.00013,2]
[327300357,1715974242939,-16306.10998318,0.00013,2]
[327300358,1715974242953,-283.53473629,0.00013,2]
[327300359,1715974242964,-366.976,0.00013,2]
[327300360,1715974242975,-1198.68,0.00013,2]
[327300361,1715974243007,-347652.70973047,0.00013,2]
[327300393,1715974245335,-973.0,0.00012915,2]
[327300394,1715974245344,-66080.46151075,0.00013,2]
[327300395,1715974245356,-3284.8065,0.00013,2]
[327300396,1715974245368,-127791.55412717,0.00013,2]
[327300397,1715974245380,-346.99751302,0.00013,2]
[327300398,1715974245625,-280.6482,0.00013,2]
[327300399,1715974245637,-1078.79243425,0.00013,2]
[327300400,1715974246567,-137965.26576277,0.00013,2]
[327300402,1715974246869,-541.15827884,0.00013,2]
[327300403,1715974246882,-870.74209631,0.00013,2]
[327300404,1715974246893,-4484.00700869,0.00013,2]
[327300405,1715974246904,-1340.1,0.00013,2]
[327300406,1715974246916,-113890.81339782,0.00013,2]
[327300407,1715974246927,-505.19360001,0.00013,2]
[327300408,1715974246938,-1506.5,0.00013,2]
[327300409,1715974246950,-332761.8639976,0.00013,2]
[327300562,1715975431680,-155.0,9.543e-05,2]
[327300563,1715975431689,-291.34,9.544e-05,2]
[327300564,1715975431698,-1214.8459856,0.00010901,2]
[327300565,1715975431709,-554.58560878,0.00010901,2]
[327300566,1715975431720,-92.24821762,0.00010901,2]
[327300567,1715975431732,-168.85,0.00010956,2]
[327300568,1715975431741,-181.2,0.00010962,2]
[327300569,1715975431751,-109.05313329,0.00011002,2]
[327300570,1715975431764,-695.0762834,0.00011002,2]
[327300571,1715975431803,-438.37058331,0.00011002,2]
[327300572,1715975431813,-788.84,0.00011015,2]
[327300573,1715975431822,-4732.46,0.00011067,2]
[327300574,1715975431832,-200.0,0.0001131,2]
[327300575,1715975431841,-150.0,0.00011425,2]
[327300576,1715975431850,-150.0,0.00011425,2]
[327300577,1715975431859,-230.05914451,0.00011426,2]
[327300578,1715975431870,-369.94085549,0.00011426,2]
[327300579,1715975431879,-250.0,0.00011426,2]
[327300580,1715975431887,-155.25580837,0.00011438,2]
[327300581,1715975431905,-469.83333614,0.00011438,2]
[327300582,1715975431917,-767.46085549,0.00011438,2]
[327300583,1715975431927,-178.74,0.00011582,2]
[327300585,1715975431936,-2794.92149036,0.00011657,2]
[327300587,1715975431948,-562.4996314,0.00011657,2]
[327300624,1715975437622,-74.88358402,0.00011657,2]
[327300626,1715975437631,-883.15084084,0.00011665,2]
[327300629,1715975437640,-266.24547519,0.00011666,2]
[327300632,1715975437650,-35714.19315768,0.00011667,2]
[327300636,1715975437662,-15847.10677805,0.00011667,2]
[327300642,1715975437683,-596.83460369,0.00011667,2]
[327300652,1715975437746,-52962.05023722,0.00011667,2]
[327300654,1715975437755,-155.28,0.00011748,2]
[327300655,1715975437764,-155.28,0.00011756,2]
[327300656,1715975437775,-155.28,0.00011764,2]
[327300657,1715975437784,-155.28,0.00011773,2]
[327300658,1715975437793,-155.28,0.00011781,2]
[327300659,1715975437803,-155.28,0.0001179,2]
[327300660,1715975437812,-155.28,0.00011798,2]
[327300661,1715975437822,-155.28,0.00011806,2]
[327300662,1715975437831,-291.34,0.00011808,2]
[327300663,1715975437841,-171.4,0.00012132,2]
[327300664,1715975437850,-174.994551,0.00012311,2]
[327300665,1715975437859,-220.423943,0.00012311,2]
[327300666,1715975437868,-241.371794,0.00012311,2]
[327300667,1715975437877,-788.84,0.00012392,2]
[327300668,1715975437886,-150.0,0.00012424,3]
[327300669,1715975437895,-174.994551,0.00012465,2]
[327300670,1715975437904,-8345.29955136,0.0001258,2]
[327300671,1715975437913,-7242.4158,0.0001258,2]
[327300672,1715975437923,-500.0,0.00012602,2]
[327300674,1715975437932,-500.0,0.00012602,2]
[327300676,1715975437942,-174.994551,0.00012619,2]
[327300678,1715975437951,-500.0,0.00012656,2]
[327300680,1715975437960,-500.0,0.00012665,2]
[327300682,1715975437970,-500.0,0.00012673,2]
[327300684,1715975437979,-23828.5896172,0.0001268,2]
[327300686,1715975437987,-500.0,0.00012682,2]
[327300688,1715975437996,-500.0,0.00012691,2]
[327300690,1715975438005,-500.0,0.000127,2]
[327300692,1715975438014,-1000.0,0.000127,2]
[327300694,1715975438023,-500.0,0.00012709,2]
[327300696,1715975438033,-500.0,0.00012717,2]
[327300698,1715975438043,-500.0,0.00012726,2]
[327300700,1715975438052,-500.0,0.00012735,2]
[327300702,1715975438061,-2603.99957143,0.0001274,2]
[327300704,1715975438070,-500.0,0.00012744,2]
[327300706,1715975438079,-500.0,0.00012753,2]
[327300708,1715975438088,-500.0,0.00012761,2]
[327300710,1715975438097,-500.0,0.0001277,2]
[327300712,1715975438106,-174.994551,0.00012772,2]
[327300714,1715975438116,-500.0,0.00012779,2]
[327300716,1715975438125,-500.0,0.00012788,2]
[327300718,1715975438134,-500.0,0.00012797,2]
[327300720,1715975438143,-7500.0,0.000128,2]
[327300722,1715975438153,-500.0,0.00012805,2]
[327300724,1715975438161,-500.0,0.00012814,2]
[327300726,1715975438171,-4895.0,0.00012817,2]
[327300728,1715975438180,-500.0,0.00012823,2]
[327300730,1715975438190,-500.0,0.00012832,2]
[327300732,1715975438199,-500.0,0.00012841,2]
[327300734,1715975438208,-500.0,0.00012849,2]
[327300736,1715975438217,-600.0,0.00012854,2]
[327300738,1715975438226,-500.0,0.00012858,2]
[327300740,1715975438235,-500.0,0.00012867,2]
[327300742,1715975438244,-500.0,0.00012876,2]
[327300744,1715975438253,-200.0,0.00012896,2]
[327300746,1715975438263,-1000.0,0.00012896,2]
[327300748,1715975438272,-200.0,0.00012896,2]
[327300750,1715975438282,-500.0,0.00012896,2]
[327300752,1715975438291,-500.0,0.00012899,2]
[327300754,1715975438301,-578.26,0.00012899,2]
[327300756,1715975438309,-500.0,0.00012899,2]
[327300758,1715975438319,-500.0,0.00012899,2]
[327300760,1715975438329,-500.0,0.00012899,2]
[327300761,1715975438338,-500.0,0.00012899,2]
[327300762,1715975438347,-252.03301164,0.00012899,2]
[327300763,1715975438356,-500.0,0.00012899,2]
[327300764,1715975438366,-500.0,0.00012899,2]
[327300765,1715975438374,-500.0,0.00012899,2]
[327300766,1715975438387,-500.0,0.00012899,2]
[327300767,1715975438396,-500.0,0.00012899,2]
[327300768,1715975438405,-500.0,0.00012899,2]
[327300769,1715975438414,-500.0,0.00012899,2]
[327300770,1715975438423,-500.0,0.00012899,2]
[327300771,1715975438433,-500.0,0.00012899,2]
[327300772,1715975438442,-500.0,0.00012899,2]
[327300773,1715975438452,-500.0,0.00012899,2]
[327300774,1715975438461,-500.0,0.00012899,2]
[327300775,1715975438472,-500.0,0.00012899,2]
[327300776,1715975438481,-500.0,0.00012899,2]
[327300777,1715975438491,-624.31,0.00012899,2]
[327300778,1715975438500,-500.0,0.00012899,2]
[327300779,1715975438509,-500.0,0.00012899,2]
[327300780,1715975438518,-500.0,0.00012899,2]
[327300781,1715975438527,-500.0,0.00012899,2]
[327300782,1715975438537,-500.0,0.00012899,2]
[327300783,1715975438546,-500.0,0.00012899,2]
[327300784,1715975438555,-500.0,0.00012899,2]
[327300785,1715975438564,-500.0,0.00012899,2]
[327300786,1715975438575,-500.0,0.00012899,2]
[327300787,1715975438584,-500.0,0.00012899,2]
[327300788,1715975438593,-155.74380215,0.000129,2]
[327300789,1715975438604,-7309.86354655,0.000129,2]
[327300790,1715975438613,-4454.50179036,0.000129,2]
[327300791,1715975438623,-11825.99505039,0.000129,2]
[327300792,1715975438633,-410.03425881,0.00012912,2]
[327300793,1715975438642,-648.52,0.00012912,2]
[327300794,1715975438651,-500.0,0.00012912,2]
[327300795,1715975438661,-500.0,0.00012912,2]
[327300796,1715975438671,-500.0,0.00012912,2]
[327300797,1715975438680,-513.9448797,0.00012912,2]
[327300798,1715975438691,-500.0,0.00012912,2]
[327300799,1715975438700,-511.04253545,0.00012912,2]
[327300800,1715975438710,-500.0,0.00012912,2]
[327300801,1715975438719,-500.0,0.00012912,2]
[327300802,1715975438729,-500.0,0.00012912,2]
[327300803,1715975438738,-500.0,0.00012912,2]
[327300804,1715975438748,-375.60485606,0.00012912,2]
[327300805,1715975438757,-7513.01102661,0.00012913,2]
[327300806,1715975438766,-500.0,0.00012913,2]